fUST/lending_fUST_20240210
["ID","MTS","AMOUNT","RATE_DAILY","PERIOD"]
[313680639,1707575363170,-821.15351128,0.00018624,2]
[313680640,1707575363191,-876.93643431,0.00018626,2]
[313680722,1707575432683,-154.90705577,0.00018625,2]
[313680724,1707575432693,-49.72760856,0.00018626,2]
[313680726,1707575432703,-360.0,0.00018884,2]
[313680728,1707575432711,-150.0,0.000189,2]
[313680730,1707575432720,-169.768238,0.00019205,2]
[313680732,1707575432729,-223.742081,0.00019235,2]
[313680735,1707575432739,-1114.9970642,0.000195,2]
[313680737,1707575432749,-632.0396879,0.00020119,2]
[313680739,1707575432758,-1463.72497453,0.00020582,2]
[313680741,1707575432771,-1139.88048057,0.00020582,2]
[313681044,1707575438768,-1253.49881705,0.00020582,2]
[313681052,1707575438836,-3112.51795966,0.00020582,2]
[313681377,1707575442005,-701.02560949,0.00020582,2]
[313681499,1707575443686,-5172.51090452,0.00020582,2]
[313681502,1707575443698,-558.45632322,0.00020582,2]
[313681504,1707575443707,-8.27377036,0.00020583,10]
[313681506,1707575443718,-1184.47103787,0.00020583,10]
[313681508,1707575443727,-281.69864682,0.00020588,2]
[313681510,1707575443736,-154.96417276,0.00020597,2]
[313681511,1707575443744,-1164.2467115,0.00020687,3]
[313681514,1707575443755,-329.47296623,0.00020687,3]
[313681604,1707576449082,-155.46374415,0.00019394,2]
[313681605,1707576449101,-240.0,0.00019394,2]
[313681606,1707576449121,-2607.2690256,0.00019394,2]
[313681607,1707576449144,-323.90420148,0.00019395,2]
[313681608,1707576449164,-68.39288004,0.00019395,2]
[313681656,1707576631865,-154.90705577,0.00019387,2]
[313681657,1707576631875,-200.0,0.00019388,2]
[313681658,1707576631884,-590.3509011,0.00019388,2]
[313681659,1707576631893,-261.17070193,0.00019389,2]
[313681660,1707576631903,-323.90420148,0.00019389,2]
[313681661,1707576631912,-295.90443276,0.00019389,2]
[313681662,1707576631921,-199.84055074,0.00019389,2]
[313681663,1707576631930,-168.670348,0.00019422,2]
[313681664,1707576631939,-1114.9970642,0.000195,2]
[313681665,1707576631948,-2790.07230434,0.00020588,3]
[313681694,1707576637916,-199.84055074,0.00019386,2]
[313681695,1707576637927,-1876.12769566,0.00020588,3]
[313681696,1707576637937,-3888.5,0.00020588,3]
[313681697,1707576637948,-3240.41,0.00020588,3]
[313681698,1707576637957,-2700.35,0.00020588,3]
[313681699,1707576637968,-324.18448095,0.00020595,2]
[313681700,1707576637977,-223.97711495,0.00020596,2]
[313681701,1707576637987,-2613.24459185,0.00020596,2]
[313681702,1707576637997,-187.51390489,0.00020596,2]
[313681703,1707576638006,-10684.82,0.00020597,2]
[313681704,1707576638016,-1134.79,0.00020597,2]
[313681705,1707576638026,-500.0,0.00020597,2]
[313681706,1707576638035,-10053.88,0.00020597,2]
[313681707,1707576638045,-500.0,0.00020597,2]
[313681708,1707576638055,-1168.25696294,0.00020597,2]
[313681709,1707576638066,-82679.38941226,0.00020598,2]
[313681710,1707576638076,-1445.62626752,0.00020693,2]
[313681711,1707576638085,-20446.02,0.00020693,2]
[313681712,1707576638094,-500.0,0.00020693,2]
[313681713,1707576638104,-500.0,0.00020693,2]
[313681714,1707576638113,-689.67,0.00020693,2]
[313681715,1707576638123,-656.91,0.00020693,2]
[313681716,1707576638132,-1416.93,0.00020693,2]
[313681717,1707576638142,-500.0,0.00020693,2]
[313681718,1707576638151,-7009.19,0.00020693,2]
[313681719,1707576638161,-500.0,0.00020693,2]
[313681720,1707576638170,-1512.56,0.00020693,2]
[313681721,1707576638180,-500.0,0.00020693,2]
[313681722,1707576638190,-1633.45,0.00020693,2]
[313681723,1707576638200,-1047.69,0.00020693,2]
[313681724,1707576638210,-2099.26,0.00020693,2]
[313681725,1707576638220,-500.0,0.00020693,2]
[313681726,1707576638230,-168.18592306,0.00020693,2]
[313681727,1707576638240,-500.0,0.00020693,2]
[313681728,1707576638250,-500.0,0.00020693,2]
[313681729,1707576638260,-904.36,0.00020693,2]
[313681730,1707576638270,-416.71414332,0.00020693,2]
[313681731,1707576638279,-602.01096838,0.00020693,2]
[313681732,1707576638289,-555.08351524,0.00020693,2]
[313681733,1707576638298,-1966.49,0.00020693,2]
[313681734,1707576638310,-277.33945228,0.00020694,2]
[313681735,1707576638319,-521.49319792,0.00020694,2]
[313681736,1707576638328,-277.90995619,0.00020694,2]
[313681737,1707576638338,-500.0,0.00020694,2]
[313681738,1707576638347,-500.0,0.00020694,2]
[313681739,1707576638357,-607.41623505,0.00020694,2]
[313681740,1707576638366,-500.0,0.00020694,2]
[313681741,1707576638375,-345.14306486,0.00020694,2]
[313681742,1707576638385,-534.79218378,0.00020694,2]
[313681743,1707576638394,-686.65,0.00020694,2]
[313681744,1707576638404,-1048.46,0.00020694,2]
[313681745,1707576638414,-9792.88,0.00020694,2]
[313681746,1707576638423,-5330.04,0.00020694,2]
[313681747,1707576638433,-7012.69,0.00020694,2]
[313681748,1707576638442,-500.0,0.00020694,2]
[313681749,1707576638452,-2107.5,0.00020694,2]
[313681750,1707576638462,-500.0,0.00020694,2]
[313681751,1707576638473,-5676.77,0.00020694,2]
[313681752,1707576638482,-2698.5,0.00020694,2]
[313681753,1707576638492,-964.0,0.00020694,2]
[313681754,1707576638501,-1424.86,0.00020694,2]
[313681755,1707576638510,-500.0,0.00020694,2]
[313681756,1707576638520,-1573.15,0.00020694,2]
[313681757,1707576638531,-500.0,0.00020694,2]
[313681758,1707576638541,-2087.21,0.00020694,2]
[313681759,1707576638550,-500.0,0.00020694,2]
[313681760,1707576638560,-11224.63,0.00020694,2]
[313681761,1707576638573,-684.66,0.00020694,2]
[313681762,1707576638582,-3849.87588507,0.00020695,2]
[313681763,1707576638592,-155.90258886,0.00020695,2]
[313681764,1707576638602,-405.62871077,0.00020695,2]
[313681765,1707576638612,-406.19016172,0.00020695,2]
[313681766,1707576638622,-245.47259137,0.00020695,2]
[313681767,1707576638632,-820.31578282,0.00020695,2]
[313681768,1707576638641,-1588.21044332,0.00020695,2]
[313681769,1707576638652,-151.0,0.00020695,2]
[313681770,1707576638662,-151.0,0.00020695,2]
[313681771,1707576638671,-576.66856581,0.00020695,2]
[313681772,1707576638681,-500.0,0.00020695,2]
[313681773,1707576638690,-500.0,0.00020696,2]
[313681774,1707576638700,-235.3838657,0.00020696,2]
[313681775,1707576638709,-500.0,0.00020696,2]
[313681776,1707576638719,-500.0,0.00020696,2]
[313681777,1707576638728,-500.0,0.00020696,2]
[313681778,1707576638739,-500.0,0.00020696,2]
[313681779,1707576638748,-1292.25,0.00020696,2]
[313681780,1707576638757,-500.0,0.00020696,2]
[313681781,1707576638766,-631.78,0.00020696,2]
[313681782,1707576638775,-154.561332,0.00020696,2]
[313681783,1707576638784,-500.96304012,0.00020696,2]
[313681784,1707576638794,-529.04348599,0.00020696,2]
[313681785,1707576638803,-500.0,0.00020696,2]
[313681786,1707576638812,-500.0,0.00020696,2]
[313681787,1707576638821,-845.56,0.00020696,2]
[313681788,1707576638830,-284.79395808,0.00020696,2]
[313681789,1707576638840,-564.09,0.00020696,2]
[313681790,1707576638849,-500.0,0.00020696,2]
[313681791,1707576638858,-500.0,0.00020696,2]
[313681792,1707576638868,-500.0,0.00020696,2]
[313681793,1707576638878,-500.0,0.00020696,2]
[313681794,1707576638888,-500.0,0.00020696,2]
[313681795,1707576638898,-500.0,0.00020696,2]
[313681796,1707576638907,-574.95,0.00020696,2]
[313681797,1707576638917,-543.25,0.00020696,2]
[313681798,1707576638926,-500.0,0.00020696,2]
[313681799,1707576638936,-151.0,0.00020696,2]
[313681800,1707576638945,-151.0,0.00020696,2]
[313681801,1707576638954,-2289.49,0.00020696,2]
[313681802,1707576638963,-500.0,0.00020696,2]
[313681803,1707576638972,-151.0,0.00020696,2]
[313681804,1707576638981,-508.14521893,0.00020696,2]
[313681805,1707576638990,-500.0,0.00020696,2]
[313681806,1707576638999,-207.22040677,0.00020696,2]
[313681807,1707576639009,-500.0,0.00020696,2]
[313681808,1707576639018,-500.0,0.00020696,2]
[313681809,1707576639027,-500.0,0.00020696,2]
[313681810,1707576639036,-500.0,0.00020696,2]
[313681811,1707576639045,-500.0,0.00020696,2]
[313681812,1707576639054,-151.0,0.00020696,2]
[313681813,1707576639063,-151.0,0.00020696,2]
[313681814,1707576639073,-183.047988,0.00020696,2]
[313681815,1707576639082,-500.0,0.00020696,2]
[313681816,1707576639092,-500.0,0.00020696,2]
[313681817,1707576639101,-556.25323954,0.00020696,2]
[313681818,1707576639110,-456.94820564,0.00020696,2]
[313681819,1707576639119,-500.0,0.00020696,2]
[313681820,1707576639129,-500.0,0.00020696,2]
[313681821,1707576639137,-500.0,0.00020696,2]
[313681822,1707576639146,-500.0,0.00020696,2]
[313681823,1707576639155,-500.0,0.00020696,2]
[313681824,1707576639165,-500.0,0.00020696,2]
[313681825,1707576639174,-2676.05,0.00020696,2]
[313681826,1707576639183,-500.0,0.00020696,2]
[313681827,1707576639192,-1557.81,0.00020696,2]
[313681828,1707576639201,-500.0,0.00020696,2]
[313681829,1707576639210,-2240.92,0.00020696,2]
[313681830,1707576639219,-500.0,0.00020696,2]
[313681831,1707576639228,-369.85876033,0.00020696,2]
[313681832,1707576639237,-500.0,0.00020696,2]
[313681833,1707576639246,-500.0,0.00020696,2]
[313681834,1707576639255,-500.0,0.00020696,2]
[313681835,1707576639265,-506.70682152,0.00020696,2]
[313681836,1707576639275,-155.12883111,0.00020696,2]
[313681837,1707576639284,-500.0,0.00020696,2]
[313681838,1707576639293,-500.0,0.00020696,2]
[313681839,1707576639302,-500.0,0.00020696,2]
[313681840,1707576639311,-1064.11,0.00020696,2]
[313681841,1707576639321,-500.0,0.00020696,2]
[313681842,1707576639331,-500.0,0.00020696,2]
[313681843,1707576639341,-544.07,0.00020696,2]
[313681844,1707576639350,-500.0,0.00020696,2]
[313681845,1707576639359,-500.0,0.00020696,2]
[313681846,1707576639368,-500.0,0.00020696,2]
[313681847,1707576639378,-500.0,0.00020696,2]
[313681848,1707576639387,-500.0,0.00020696,2]
[313681849,1707576639396,-618.97119907,0.00020696,2]
[313681850,1707576639406,-678.94138998,0.00020696,2]
[313681851,1707576639415,-154.90705577,0.00020697,2]
[313681852,1707576639424,-151.0,0.00020698,2]
[313681853,1707576639433,-612.42414903,0.00020699,2]
[313681854,1707576639443,-10684.82,0.00020707,2]
[313681855,1707576639452,-1134.79,0.00020707,2]
[313681856,1707576639463,-500.0,0.00020707,2]
[313681857,1707576639472,-10053.88,0.00020707,2]
[313681858,1707576639481,-500.0,0.00020707,2]
[313681859,1707576639491,-44444.0,0.00020722,2]
[313681860,1707576639500,-500.0,0.00020793,2]
[313681861,1707576639510,-500.0,0.00020793,2]
[313681862,1707576639519,-500.0,0.00020793,2]
[313681863,1707576639528,-500.0,0.00020793,2]
[313681864,1707576639538,-500.0,0.00020793,2]
[313681865,1707576639547,-502.28564242,0.00020793,2]
[313681866,1707576639557,-500.0,0.00020793,2]
[313681867,1707576639569,-504.48564056,0.00020793,2]
[313681868,1707576639579,-358.56819931,0.00020794,2]
[313681869,1707576639588,-3121.12632416,0.00020794,2]
[313681870,1707576639598,-151.0,0.00020794,2]
[313681871,1707576639607,-500.0,0.00020795,2]
[313681872,1707576639618,-580.46054285,0.00020795,2]
[313681873,1707576639628,-500.0,0.00020795,2]
[313681874,1707576639637,-500.0,0.00020795,2]
[313681875,1707576639649,-151.0,0.00020795,2]
[313681876,1707576639658,-155.1983271,0.00020797,2]
[313681877,1707576639668,-294.57728151,0.00020798,2]
[313681878,1707576639677,-1450.39521974,0.00020798,2]
[313681879,1707576639687,-50000.0,0.00020799,2]
[313681880,1707576639696,-151.0,0.00020799,2]
[313681881,1707576639706,-26620.87161619,0.000208,2]
[313681882,1707576639715,-5000.0,0.000208,2]
[313681883,1707576639725,-5000.0,0.000208,2]
[313681884,1707576639735,-624.79774345,0.000208,2]
[313681885,1707576639744,-5000.0,0.000208,2]
[313681886,1707576639754,-4191.67477488,0.000208,2]
[313681887,1707576639763,-5000.0,0.000208,2]
[313681888,1707576639772,-5000.0,0.000208,2]
[313681889,1707576639782,-11466.46418835,0.000208,2]
[313681972,1707576643317,-505.8,0.00020597,2]
[313682421,1707577627105,-154.90705577,0.00019084,2]
[313682422,1707577627288,-500.0,0.00019085,2]
[313682423,1707577627309,-154.90705577,0.00019085,2]
[313682424,1707577627329,-154.90705577,0.00019086,2]
[313682425,1707577627349,-154.90705577,0.00019086,2]
[313682426,1707577627369,-2101.82444739,0.00019086,2]
[313682427,1707577627388,-2607.2690256,0.00019086,2]
[313682428,1707577627409,-294.68032616,0.00019087,2]
[313682429,1707577627429,-323.90420148,0.00019087,2]
[313682430,1707577627450,-247.567337,0.00019164,2]
[313682431,1707577627470,-166.488178,0.00019302,2]
[313682432,1707577627489,-1114.9970642,0.000195,2]
[313682433,1707577627509,-274.95719598,0.0002,2]
[313682434,1707577627529,-324.18448095,0.0002,2]
[313682435,1707577627551,-620.60198439,0.00020069,2]
[313682436,1707577627573,-2489.89687599,0.00020374,2]
[313682437,1707577638096,-420.88245924,0.00020374,2]
[313682499,1707577832044,-324.18448095,0.00020373,2]
[313682501,1707577832054,-294.68032616,0.00020373,2]
[313682503,1707577832063,-154.90705577,0.00020373,2]
[313682505,1707577832073,-323.90420148,0.00020373,2]
[313682507,1707577832082,-1200.0,0.00020374,2]
[313682509,1707577832092,-2895.12706884,0.00020374,2]
[313682511,1707577832101,-612.42414903,0.00020497,2]
[313682513,1707577832110,-4538.71,0.00020571,3]
[313682515,1707577832120,-3782.25,0.00020571,3]
[313682517,1707577832130,-3151.88,0.00020571,3]
[313682519,1707577832140,-7296.96572868,0.00020578,2]
[313682521,1707577832149,-1445.62626752,0.00020579,2]
[313682523,1707577832159,-187.51390489,0.00020579,2]
[313682525,1707577832169,-223.97711495,0.00020579,2]
[313682527,1707577832178,-155.09926353,0.00020579,2]
[313682529,1707577832187,-1168.25696294,0.00020579,2]
[313682531,1707577832197,-300.10478612,0.00020579,2]
[313682533,1707577832207,-500.0,0.00020579,2]
[313682535,1707577832216,-155.90258886,0.00020579,2]
[313682537,1707577832225,-155.21381006,0.00020579,2]
[313682539,1707577832234,-1450.39521974,0.00020579,2]
[313682541,1707577832244,-2612.44736205,0.00020579,2]
[313682543,1707577832253,-247.70101724,0.0002058,2]
[313682545,1707577832263,-521.49319792,0.0002058,2]
[313682547,1707577832272,-2244.56236047,0.0002058,2]
[313682549,1707577832282,-683.14900057,0.0002058,2]
[313682551,1707577832291,-1688.81025991,0.0002058,2]
[313682553,1707577832300,-10684.82,0.0002058,2]
[313682555,1707577832310,-1134.79,0.0002058,2]
[313682557,1707577832319,-500.0,0.0002058,2]
[313682558,1707577832331,-6362.1534732,0.0002058,2]
[313682561,1707577832344,-3691.7265268,0.0002058,2]
[313682563,1707577832353,-1510.25927638,0.0002058,2]
[313682613,1707577838117,-12000.0,0.0002058,2]
[313682615,1707577838130,-2596.90357907,0.0002058,2]
[313682621,1707577838171,-4338.85714455,0.0002058,2]
[313682623,1707577838181,-500.0,0.0002058,2]
[313682625,1707577838190,-1588.21044332,0.00020581,2]
[313682627,1707577838199,-820.31578282,0.00020581,2]
[313682629,1707577838208,-406.19016172,0.00020581,2]
[313682631,1707577838217,-245.47259137,0.00020581,2]
[313682633,1707577838226,-405.62871077,0.00020581,2]
[313682635,1707577838235,-3849.87588507,0.00020581,2]
[313682637,1707577838244,-1051.64235556,0.00020581,2]
[313682639,1707577838253,-689.67,0.00020581,2]
[313682641,1707577838263,-500.0,0.00020581,2]
[313682643,1707577838272,-656.91,0.00020581,2]
[313682644,1707577838281,-1416.93,0.00020581,2]
[313682646,1707577838291,-7009.19,0.00020581,2]
[313682647,1707577838300,-1633.45,0.00020581,2]
[313682648,1707577838309,-1512.56,0.00020581,2]
[313682649,1707577838318,-500.0,0.00020581,2]
[313682650,1707577838327,-168.18592306,0.00020581,2]
[313682651,1707577838337,-1047.69,0.00020581,2]
[313682652,1707577838346,-2099.26,0.00020581,2]
[313682653,1707577838356,-1966.49,0.00020581,2]
[313682654,1707577838365,-500.0,0.00020581,2]
[313682655,1707577838374,-296.28297321,0.00020582,2]
[313682656,1707577838383,-500.0,0.00020582,2]
[313682657,1707577838392,-277.90995619,0.00020582,2]
[313682658,1707577838401,-500.0,0.00020582,2]
[313682659,1707577838410,-500.0,0.00020582,2]
[313682660,1707577838420,-500.0,0.00020582,2]
[313682661,1707577838429,-505.07426409,0.00020582,2]
[313682662,1707577838438,-500.0,0.00020582,2]
[313682663,1707577838448,-904.36,0.00020582,2]
[313682664,1707577838458,-607.41623505,0.00020582,2]
[313682665,1707577838466,-602.01096838,0.00020582,2]
[313682666,1707577838476,-416.71414332,0.00020582,2]
[313682667,1707577838485,-576.66856581,0.00020582,2]
[313682668,1707577838494,-500.0,0.00020582,2]
[313682669,1707577838504,-555.08351524,0.00020582,2]
[313682670,1707577838513,-500.0,0.00020582,2]
[313682671,1707577838522,-345.14306486,0.00020582,2]
[313682672,1707577838532,-534.79218378,0.00020582,2]
[313682673,1707577838541,-500.0,0.00020582,2]
[313682674,1707577838550,-686.65,0.00020582,2]
[313682675,1707577838559,-235.3838657,0.00020582,2]
[313682676,1707577838568,-1048.46,0.00020582,2]
[313682677,1707577838577,-500.0,0.00020582,2]
[313682678,1707577838586,-9792.88,0.00020582,2]
[313682679,1707577838595,-5330.04,0.00020582,2]
[313682680,1707577838605,-1424.86,0.00020582,2]
[313682681,1707577838614,-7012.69,0.00020582,2]
[313682682,1707577838623,-5676.77,0.00020582,2]
[313682683,1707577838632,-2107.5,0.00020582,2]
[313682684,1707577838642,-964.0,0.00020582,2]
[313682685,1707577838651,-500.0,0.00020582,2]
[313682686,1707577838660,-500.0,0.00020582,2]
[313682687,1707577838669,-500.0,0.00020582,2]
[313682688,1707577838678,-1573.15,0.00020582,2]
[313682689,1707577838687,-500.0,0.00020582,2]
[313682690,1707577838696,-2698.5,0.00020582,2]
[313682691,1707577838705,-631.78,0.00020582,2]
[313682692,1707577838714,-500.0,0.00020582,2]
[313682693,1707577838723,-500.0,0.00020582,2]
[313682694,1707577838732,-500.0,0.00020582,2]
[313682695,1707577838741,-2087.21,0.00020582,2]
[313682696,1707577838750,-500.0,0.00020582,2]
[313682697,1707577838760,-845.56,0.00020582,2]
[313682698,1707577838769,-500.96304012,0.00020582,2]
[313682699,1707577838778,-500.0,0.00020582,2]
[313682700,1707577838787,-500.0,0.00020582,2]
[313682701,1707577838795,-564.09,0.00020582,2]
[313682702,1707577838804,-11224.63,0.00020582,2]
[313682703,1707577838814,-500.0,0.00020582,2]
[313682704,1707577838823,-684.66,0.00020582,2]
[313682705,1707577838833,-1292.25,0.00020582,2]
[313682706,1707577838842,-44511.67947654,0.00020583,2]
[313682707,1707577838852,-180.09680984,0.00020592,2]
[313682708,1707577838861,-154.90705577,0.00020592,2]
[313682709,1707577838871,-678.94138998,0.00020592,2]
[313682710,1707577838880,-3121.12632416,0.00020592,2]
[313682711,1707577838890,-358.56819931,0.00020592,2]
[313682712,1707577838899,-160132.43822069,0.00020594,2]
[313682713,1707577838910,-154.561332,0.00020594,2]
[313682714,1707577838919,-593.86468013,0.00020596,2]
[313682715,1707577838929,-50000.0,0.00020597,2]
[313682716,1707577838939,-500.0,0.00020597,2]
[313682717,1707577838948,-284.79395808,0.00020597,2]
[313682718,1707577838959,-500.0,0.00020597,2]
[313682719,1707577838969,-2289.49,0.00020597,2]
[313682720,1707577838978,-151.0,0.00020597,2]
[313682721,1707577838988,-151.0,0.00020597,2]
[313682722,1707577838997,-500.0,0.00020597,2]
[313682723,1707577839006,-508.14521893,0.00020597,2]
[313682724,1707577839015,-500.0,0.00020597,2]
[313682725,1707577839025,-500.0,0.00020597,2]
[313682726,1707577839034,-2676.05,0.00020597,2]
[313682727,1707577839043,-1557.81,0.00020597,2]
[313682728,1707577839052,-2240.92,0.00020597,2]
[313682729,1707577839061,-500.0,0.00020597,2]
[313682730,1707577839070,-506.70682152,0.00020597,2]
[313682731,1707577839079,-544.07,0.00020597,2]
[313682732,1707577839089,-10684.82,0.0002069,2]
[313682733,1707577839097,-1134.79,0.0002069,2]
[313682734,1707577839107,-500.0,0.0002069,2]
[313682735,1707577839116,-10053.88,0.0002069,2]
[313682736,1707577839125,-20446.02,0.0002069,2]
[313682737,1707577839134,-500.0,0.0002069,2]
[313682738,1707577839143,-689.67,0.00020691,2]
[313682739,1707577839153,-500.0,0.00020691,2]
[313682740,1707577839162,-656.91,0.00020691,2]
[313682741,1707577839171,-1416.93,0.00020691,2]
[313682742,1707577839180,-7009.19,0.00020691,2]
[313682743,1707577839189,-1633.45,0.00020691,2]
[313682744,1707577839198,-1512.56,0.00020691,2]
[313682745,1707577839208,-500.0,0.00020691,2]
[313682746,1707577839216,-1047.69,0.00020691,2]
[313682747,1707577839225,-2099.26,0.00020691,2]
[313682748,1707577839234,-1966.49,0.00020691,2]
[313682749,1707577839243,-500.0,0.00020691,2]
[313682750,1707577839252,-500.0,0.00020692,2]
[313682751,1707577839262,-151.0,0.00020692,2]
[313682752,1707577839271,-500.23827498,0.00020692,2]
[313682753,1707577839280,-500.0,0.00020692,2]
[313682754,1707577839291,-500.0,0.00020692,2]
[313682755,1707577839300,-904.36,0.00020692,2]
[313682756,1707577839309,-500.0,0.00020692,2]
[313682757,1707577839319,-686.65,0.00020692,2]
[313682758,1707577839328,-1048.46,0.00020692,2]
[313682759,1707577839337,-299.73002939,0.00020692,2]
[313682760,1707577839346,-9792.88,0.00020692,2]
[313682761,1707577839355,-5330.04,0.00020692,2]
[313682762,1707577839364,-1424.86,0.00020692,2]
[313682763,1707577839373,-7012.69,0.00020692,2]
[313682764,1707577839383,-5676.77,0.00020692,2]
[313682765,1707577839393,-2107.5,0.00020692,2]
[313682766,1707577839402,-163.95868363,0.00020692,2]
[313682790,1707577844471,-632.2,0.0002058,2]
[313682791,1707577844481,-500.0,0.00020582,2]
[313682793,1707577844490,-425.32705378,0.0002069,2]
[313682804,1707577889175,33000.0,0.00029,30]
[313682826,1707578214856,-323.90420148,0.0001879,2]
[313682827,1707578214878,-2101.82444739,0.0001879,2]
[313682828,1707578214900,-154.92253873,0.00018791,2]
[313682829,1707578214921,-261.17070193,0.00018791,2]
[313682830,1707578214944,-160.55683341,0.00018792,2]
[313682844,1707578698108,154.92253873,0.00018792,2]
[313682846,1707578712104,204.28077411,0.00018792,2]
[313682847,1707578723818,46638.41796422,0.00018792,2]
[313682851,1707578836094,-199.84055074,0.00018789,2]
[313682852,1707578836117,-1181.19543372,0.00018789,2]
[313682853,1707578890396,1008.87255142,0.00016911,2]
[313682874,1707579008048,214.738097,0.00017789,2]
[313682897,1707579032236,-2468.3658084,0.00018779,2]
[313682899,1707579032246,-154.92253873,0.00018779,2]
[313682900,1707579032255,-261.98617996,0.00018779,2]
[313682901,1707579032265,-821.15351128,0.0001878,2]
[313682902,1707579032274,-177.827444,0.0001879,2]
[313682903,1707579032284,-157.68801362,0.0001879,2]
[313682904,1707579032293,-348.2700494,0.00018791,2]
[313682905,1707579032302,-1788.05099406,0.00018791,2]
[313682906,1707579032467,-49827.70695924,0.00018792,2]
[313682907,1707579032482,-2611.74392492,0.00018792,2]
[313682918,1707579038337,-122.87226433,0.00018792,2]
[313682919,1707579038347,-150.0,0.000189,2]
[313682920,1707579038356,-12490.4128459,0.00019051,2]
[313682921,1707579038366,-200.0,0.00019167,2]
[313682922,1707579038375,-200.0,0.00019167,2]
[313682923,1707579038384,-10239.61,0.00019178,2]
[313682924,1707579038393,-1087.5,0.00019178,2]
[313682925,1707579038403,-19774.89,0.00019178,2]
[313682926,1707579038411,-10239.61,0.00019287,2]
[313682927,1707579038420,-1087.5,0.00019287,2]
[313682928,1707579038429,-19774.89,0.00019287,2]
[313682929,1707579038438,-10239.61,0.00019397,2]
[313682930,1707579038448,-1087.5,0.00019397,2]
[313682931,1707579038457,-19774.89,0.00019397,2]
[313682932,1707579038466,-10239.61,0.00019506,2]
[313682933,1707579038475,-1087.5,0.00019506,2]
[313682934,1707579038485,-19774.89,0.00019506,2]
[313682935,1707579038495,-10239.61,0.00019616,2]
[313682936,1707579038504,-1087.5,0.00019616,2]
[313682937,1707579038513,-19774.89,0.00019616,2]
[313682938,1707579038522,-10239.61,0.00019726,2]
[313682939,1707579038531,-1087.5,0.00019726,2]
[313682940,1707579038540,-19774.89,0.00019726,2]
[313682941,1707579038561,-10239.61,0.00019835,2]
[313682942,1707579038571,-1087.5,0.00019835,2]
[313682943,1707579038581,-19774.89,0.00019835,2]
[313682945,1707579038591,-10239.61,0.00019945,2]
[313682946,1707579038601,-1087.5,0.00019945,2]
[313682947,1707579038610,-19774.89,0.00019945,2]
[313682948,1707579038620,-324.18448095,0.0002,2]
[313682949,1707579038629,-10239.61,0.00020054,2]
[313682950,1707579038640,-1087.5,0.00020054,2]
[313682951,1707579038649,-19774.89,0.00020054,2]
[313682952,1707579038659,-10239.61,0.00020164,2]
[313682953,1707579038669,-1087.5,0.00020164,2]
[313682955,1707579038678,-19774.89,0.00020164,2]
[313682956,1707579038689,-10239.61,0.00020273,2]
[313682957,1707579038698,-1087.5,0.00020273,2]
[313682958,1707579038708,-19774.89,0.00020273,2]
[313682959,1707579038717,-155.66439101,0.00020288,2]
[313682960,1707579038727,-155.71480312,0.00020288,2]
[313682961,1707579038736,-155.65048837,0.00020288,2]
[313682962,1707579038746,-170.50784405,0.00020289,2]
[313682963,1707579038755,-500.0,0.00020289,2]
[313682964,1707579038765,-9634.97,0.00020289,2]
[313682965,1707579038775,-500.0,0.00020289,2]
[313682966,1707579038784,-645.61,0.00020289,2]
[313682967,1707579038793,-500.0,0.00020289,2]
[313682968,1707579038803,-656.91,0.00020289,2]
[313682969,1707579038812,-1416.93,0.00020289,2]
[313682970,1707579038821,-7009.19,0.00020289,2]
[313682971,1707579038831,-1512.56,0.00020289,2]
[313682972,1707579038840,-1633.45,0.00020289,2]